Cogmind - Beta 15 @@@ ROGUE MODE // 2025.07.25 @ 13:03:12 Player: amhumam Result: Destroyed by Executioner with Helical Railgun Performance ------------- Evolutions (7) 3500 Regions Visited (24) 4800 Robots Destroyed (185) 925 Value Destroyed (10927) 10927 Prototype IDs (108) 2160 Alien Tech Used (2) 400 Bonus (9624) 9624 TOTAL SCORE: 32336 Bonus ------- High Alert Combat Kills 685 Follower Combat Kills 2768 Entered Garrisons 400 Used RIF Installer 1000 Network Hubs Disabled 400 Registered with UFD 300 Met Optimus in HQ 500 Built Enhanced Grunts 300 Met R17 at Cetus 500 Met R17 at Research 2000 Met Optimus at Protoforge 1000 Friendly Fire -229 Cogmind --------- Core Integrity 0/1300 Matter 136/300 Energy 83/525 System Corruption 13% Temperature Cool (40) Movement Walking (93) Location -3/Protoforge Parts ------- > --- POWER (1) -------- Antimatter Reactor > --- PROPULSION (6) --- Myomer Leg Myomer Leg Experimental VSS Leg Experimental VSS Leg > --- UTILITY (10) ----- Large Storage Unit Compact Battery Plexus Tether Experimental Optical Array Experimental Target Analyzer Core Analyzer Experimental Core Analyzer Experimental Reaction Control System Centrium Light Armor Plating Centrium Medium Armor Plating > --- WEAPON (4) ------- Core Cannon Concept XC Strikerail Concept XC Strikerail > --- INVENTORY (15) --- Impulse Thruster Array Matter Neutralizer Peak State ------------ > --- POWER ------------ Improved Quantum Reactor > --- PROPULSION ------- Flexi-carbon Leg Myomer Leg Myomer Leg Myomer Leg Experimental VSS Leg Experimental VSS Leg > --- UTILITY ---------- Light Humpback Plexus Tether Experimental Optical Array Experimental Target Analyzer Core Analyzer Experimental Core Analyzer Experimental Armor Integrity Analyzer Experimental Reaction Control System Centrium Medium Armor Plating > --- WEAPON ----------- Matter Neutralizer Concept XC Strikerail Concept XC Strikerail > --- INVENTORY -------- Antimatter Reactor Light Antimatter Reactor Q-thruster Q-thruster Cooled Impulse Thruster Impulse Thruster Array Large Storage Unit Small Battery Compact Battery Advanced Kinecellerator Experimental Reaction Control System Subatomic Replicator Core Cannon UFD Drillbomb [Rating: 184] Favorites ----------- Power Heavy Ion Engine Engine Heavy Ion Engine Power Core Neutrino Core Reactor Particle Reactor Propulsion Light Treads Treads Light Treads Leg Improved Titanium Leg Hover Unit Combat Gravmag System Flight Unit VTOL Module Utility Large Storage Unit Device Advanced Heat Sink Storage Large Storage Unit Processor Improved Signal Interpreter Hackware Hacking Suite Protection Centrium Medium Armor Plating Weapon Flak Cannon Energy Gun Advanced Variable Charge Gun Energy Cannon Matter Neutralizer Ballistic Gun Minigun Ballistic Cannon Flak Cannon Launcher Grenade Launcher Special Weapon Improved Remote Datajack Slashing Weapon Katana Special Melee Weapon Improved Datajack Build | -11 -10 -10 -9 -9 -8 -8 -8 -8 -6 -6 -6 -6 -5 -5 -5 -4 -4 -4 -4 -4 -4 -3 -3 -3 ------- Run | Yrd Mat Min Mat Min Mat Sto Rec Scr Fac Gar Fac Gar Fac Upp War Pro Fac Ext Cet Arc Hub Res Qua Frg Slots Evolved 14 | . . . 2 . 2 . . . 4 . . . 2 . . . 2 . . . . 2 . . Power . | . . . . . . . . . . . . . . . . . . . . . . . . . Propulsion 4 | . . . 1 . . . . . 1 . . . 1 . . . 1 . . . . . . . Utility 8 | . . . 1 . 1 . . . 3 . . . 1 . . . 1 . . . . 1 . . Weapon 2 | . . . . . 1 . . . . . . . . . . . . . . . . 1 . . Parts Attached 234 | 6 . 1 17 1 2 5 1 4 3 4 7 17 35 1 . 2 9 22 13 5 1 39 9 30 Power 19 | 1 . . 1 . . 1 . . . . . 2 5 . . . 1 1 . 1 . 4 . 2 Engine 5 | 1 . . 1 . . 1 . . . . . 1 1 . . . . . . . . . . . Core 6 | . . . . . . . . . . . . 1 3 . . . 1 1 . . . . . . Reactor 8 | . . . . . . . . . . . . . 1 . . . . . . 1 . 4 . 2 Propulsion 59 | 2 . . 5 . . . . 2 . 1 2 5 12 . . . . 4 3 . . 13 2 8 Treads 20 | 2 . . 5 . . . . 2 . 1 2 . 1 . . . . . 3 . . 4 . . Leg 10 | . . . . . . . . . . . . 1 3 . . . . . . . . . . 6 Wheel . | . . . . . . . . . . . . . . . . . . . . . . . . . Hover 12 | . . . . . . . . . . . . . 8 . . . . 4 . . . . . . Flight 17 | . . . . . . . . . . . . 4 . . . . . . . . . 9 2 2 Utility 92 | 1 . . 5 1 1 1 . . 3 . 2 7 8 1 . 2 7 12 3 4 . 14 6 14 Device 35 | . . . 1 . . . . . 1 . 2 2 2 . . 1 1 9 . 4 . 4 4 4 Storage 9 | 1 . . . 1 . . . . . . . 1 1 . . . 1 . . . . 1 . 3 Processor 19 | . . . 3 . 1 . . . . . . 1 1 . . . 1 2 . . . 3 2 5 Hackware 14 | . . . . . . 1 . . 1 . . 3 4 . . 1 2 . . . . 2 . . Protection 15 | . . . 1 . . . . . 1 . . . . 1 . . 2 1 3 . . 4 . 2 Artifact . | . . . . . . . . . . . . . . . . . . . . . . . . . Weapon 64 | 2 . 1 6 . 1 3 1 2 . 3 3 3 10 . . . 1 5 7 . 1 8 1 6 Energy Gun 13 | 1 . . 1 . . . . . . . 2 . 1 . . . . 4 1 . 1 2 . . Energy Cannon 11 | . . . . . . . . . . . 1 . 4 . . . . . 1 . . 3 1 1 Ballistic Gun 16 | 1 . . . . . 1 1 1 . . . 1 1 . . . . . 3 . . 2 . 5 Ballistic Cannon 8 | . . . 2 . . 1 . . . 1 . 1 2 . . . 1 . . . . . . . Launcher 4 | . . 1 . . . 1 . . . . . 1 . . . . . . . . . 1 . . Special Weapon 7 | . . . . . . . . 1 . 1 . . 2 . . . . 1 2 . . . . . Impact Weapon . | . . . . . . . . . . . . . . . . . . . . . . . . . Slashing Weapon 4 | . . . 3 . 1 . . . . . . . . . . . . . . . . . . . Piercing Weapon . | . . . . . . . . . . . . . . . . . . . . . . . . . Special Melee Weapon 1 | . . . . . . . . . . 1 . . . . . . . . . . . . . . Unidentified Prototypes 28 | . . . 2 . . 2 . 1 . . 1 . 3 . . . 2 1 5 . . 2 3 6 Corrupted Parts 4 | . . . . . . . . . . . . . . . . . . . 3 . . . . 1 System Corruption 30 | . . . . . . . . . . . . . . . . . . . 22 . . . . 8 Parts Lost 111 | . . . 3 . . . 1 . . . 1 15 11 . . . 1 17 6 . 1 41 . 14 Power 10 | . . . 1 . . . . . . . . 1 2 . . . . 1 . . . 4 . 1 Propulsion 30 | . . . 1 . . . 1 . . . 1 5 3 . . . . 4 2 . . 9 . 4 Utility 38 | . . . . . . . . . . . . 4 2 . . . . 7 1 . 1 17 . 6 Weapon 33 | . . . 1 . . . . . . . . 5 4 . . . 1 5 3 . . 11 . 3 Highest Loss Streak 14 | . . . 2 . . . 1 . . . 1 7 3 . . . 1 4 4 . 1 14 . 4 To Critical Strikes 2 | . . . . . . . . . . . . . 1 . . . . 1 . . . . . . Average Backups 13 | 1 3 6 7 8 10 14 14 14 14 14 13 13 14 14 15 14 13 12 13 15 15 15 13 11 Power 1 | . 1 1 . 1 1 1 1 1 1 1 1 1 1 1 1 1 1 . 1 2 2 1 . . Propulsion 1 | . . 1 . 1 1 1 1 1 . . . . . 3 3 3 2 1 . . 1 2 5 4 Utility 4 | . . 1 2 3 5 5 4 5 2 5 7 7 6 6 6 5 5 5 6 6 6 4 2 2 Weapon 4 | . 1 3 3 3 3 7 7 6 7 5 3 3 2 1 2 2 2 2 2 4 4 5 2 2 Tool/Special . | . . . . . . . . . . . . . . . . . . . . . . . . . Unused Backups 46 | . . 2 3 . . 3 1 5 2 12 . . 5 . . 2 . . . 1 . . 1 9 Power 3 | . . 1 . . . 1 . . . . . . 1 . . . . . . . . . . . Propulsion 8 | . . . . . . . . . 1 . . . 1 . . . . . . . . . . 6 Utility 14 | . . . 1 . . 1 1 1 1 5 . . 1 . . . . . . 1 . . . 2 Weapon 18 | . . 1 2 . . 1 . 4 . 6 . . 1 . . 2 . . . . . . 1 . Tool/Special 3 | . . . . . . . . . . 1 . . 1 . . . . . . . . . . 1 Average Slot Usage (%) 90 | . 85 85 96 100 89 100 91 96 84 98 98 89 88 93 94 91 90 91 86 83 79 82 77 85 Engine 4 | . 14 14 10 11 9 9 9 9 6 6 6 2 . . . . . . . . . . . . Reactor 1 | . . . . . . . . . . . . . . 5 5 5 2 2 5 5 5 3 3 4 Treads 15 | . 28 28 31 33 27 27 19 26 20 25 24 11 . . . . . . 9 15 15 12 . . Leg 1 | . . . . . . . . . . . . . 6 . . . . . . . . . . 13 Hover 3 | . . . . . . . . . . . . . 10 23 23 23 26 26 10 . . . . . Flight 3 | . . . . . . . . . . . . 11 6 . . . . . . . . 4 28 13 Device 6 | . . . 1 . . . . . 5 6 10 13 11 5 5 10 7 10 6 9 10 8 8 7 Storage 7 | . 14 14 11 11 9 9 9 9 6 6 6 6 8 5 5 5 5 5 5 5 5 4 4 7 Processor 12 | . . . 11 11 11 18 18 18 13 13 13 10 9 5 5 5 5 6 13 10 10 12 21 24 Hackware 8 | . . . . . . 8 9 9 12 13 13 8 13 23 23 14 16 18 13 10 6 7 4 1 Protection 3 | . . . 6 11 9 . . . 5 6 2 . . 4 5 5 9 3 5 10 10 7 . 1 Energy Gun 3 | . 14 9 4 . . . . . . . 3 4 . 5 5 5 5 7 4 5 8 8 . . Energy Cannon 1 | . . . . . . . . . . . 3 . 3 . . . . . 1 5 5 2 . 2 Ballistic Gun 4 | . 14 14 . . . 1 16 13 . . . 3 1 . . . . . 5 . . 3 . 5 Ballistic Cannon 4 | . . . 8 15 15 14 9 9 6 4 4 4 3 5 5 5 2 2 . . . . . . Special Weapon 2 | . . . . . . . . 2 6 7 . 2 2 5 5 5 5 3 2 4 1 1 3 . Peak Build Rating 184 | 6 6 8 22 20 28 31 31 41 58 54 57 55 84 82 82 85 98 96 136 137 137 164 125 184 Average Rating 67 | 4 6 6 18 20 24 30 29 36 56 50 53 47 69 81 82 82 90 86 112 136 135 136 106 146 On Entrance 59 | . 6 6 8 20 20 28 31 29 41 53 49 54 49 80 82 82 84 92 86 136 137 135 71 119 Naked Turns . | . . . . . . . . . . . . . . . . . . . . . . . . . Heaviest Build 116 | 11 11 13 33 44 51 51 40 48 52 52 48 52 63 56 56 62 64 64 69 74 75 116 41 110 Greatest Support 240 | 40 40 40 60 60 60 60 60 68 68 88 88 80 62 62 62 62 73 73 240 240 240 240 46 147 Greatest Overweight (x) 15 | . . . . . . . . . . . . 15 3 . . . . 1 . . . 1 1 . Average Overweight (x) . | . . . . . . . . . . . . 1 . . . . . . . . . . . . Largest Inventory Capacity 25 | 8 8 8 8 15 15 15 15 15 15 15 15 15 15 15 15 15 15 15 15 15 15 20 15 25 Average Capacity 14 | 7 8 8 8 8 15 15 15 15 15 15 15 15 15 15 15 15 15 15 15 15 15 18 15 17 Most Carried 25 | 2 6 8 8 10 12 15 15 15 15 15 15 15 15 15 15 15 15 15 15 15 15 20 15 25 Average Carried 13 | 1 4 6 7 8 10 14 14 14 14 14 14 14 14 14 15 14 14 13 13 14 15 15 13 15 Final Capacity 15 | 8 8 8 8 15 15 15 15 15 15 15 15 15 15 15 15 15 15 15 15 15 15 15 15 15 Final Carried 15 | 2 6 8 8 10 11 15 15 15 15 15 15 15 14 15 15 15 14 15 15 15 15 12 15 3 Class Distribution -------------------- 18% | Mutant 17% | Scavenger-Tank 15% | Commander-Gunner 8% | Bothacker-Skirmisher 7% | Bothacker-Mutant 5% | Commander-Mutant 5% | Scavenger-Gunner 5% | Scavenger-Mutant 3% | Scavenger-Skirmisher Dominant Class ---------------- Mutant | -10/Materials Mutant | -10/Mines Mutant | -9/Materials Mutant | -9/Mines Mutant | -8/Materials Scavenger-Mutant | -8/Storage Commander-Gunner | -8/Recycling Commander-Gunner | -8/Scraptown Hacker-Skirmisher | -6/Factory Commander-Mutant | -6/Garrison Bothacker-Mutant | -6/Factory Bothacker-Mutant | -6/Garrison Bothacker-Skirmisher | -5/Factory Bothacker-Skirmisher | -5/Upper Caves Bothacker-Skirmisher | -5/Warlord Bothacker-Skirmisher | -4/Proximity Caves Bothacker-Skirmisher | -4/Factory Skirmisher | -4/Extension Scavenger-Tank | -4/Cetus Scavenger-Tank | -4/Archives Scavenger-Tank | -4/Hub_04(d) Scavenger-Tank | -3/Research Scavenger-Scout | -3/Quarantine Scavenger-Gunner | -3/Protoforge Resources | -11 -10 -10 -9 -9 -8 -8 -8 -8 -6 -6 -6 -6 -5 -5 -5 -4 -4 -4 -4 -4 -4 -3 -3 -3 ----------- Run | Yrd Mat Min Mat Min Mat Sto Rec Scr Fac Gar Fac Gar Fac Upp War Pro Fac Ext Cet Arc Hub Res Qua Frg Matter Collected 7250 | 246 14 143 766 80 18 174 183 49 298 . 214 464 926 105 . 32 512 513 213 103 10 854 243 1090 Remotely . | . . . . . . . . . . . . . . . . . . . . . . . . . Salvage Created 7872 | . . 45 505 76 78 129 239 . 122 . 247 678 1034 . . . . 453 246 215 360 1890 . 1555 Parts 408 | . . 2 54 4 5 10 13 . 8 . 9 32 55 . . . . 18 11 15 15 76 . 81 Haulers Intercepted 3 | . . . 1 . . . . . . . 1 . . . . . . . . . 1 . . . Recyclers Shooed 3 | . . . . . . . . . . . 2 . 1 . . . . . . . . . . . Parts Field Recycled . | . . . . . . . . . . . . . . . . . . . . . . . . . Retrieved Matter . | . . . . . . . . . . . . . . . . . . . . . . . . . Parts Self-Destructed . | . . . . . . . . . . . . . . . . . . . . . . . . . Prevented 5 | . . . . . . . . . . . . . . . . 5 . . . . . . . . Kills | -11 -10 -10 -9 -9 -8 -8 -8 -8 -6 -6 -6 -6 -5 -5 -5 -4 -4 -4 -4 -4 -4 -3 -3 -3 ------- Run | Yrd Mat Min Mat Min Mat Sto Rec Scr Fac Gar Fac Gar Fac Upp War Pro Fac Ext Cet Arc Hub Res Qua Frg Combat Hostiles Destroyed 145 | . . 2 19 3 4 3 6 . 2 . 1 24 19 . . . . 8 3 . . 30 . 21 Guns 59 | . . . 3 . . . 2 . . . . 6 3 . . . . 5 3 . . 19 . 18 Cannons 58 | . . . 3 3 4 3 4 . 2 . 1 6 15 . . . . 3 . . . 11 . 3 AOE 25 | . . 2 13 . . . . . . . . 9 1 . . . . . . . . . . . Classes Destroyed 20 | . . 1 7 . . . 2 . 1 . 1 1 2 . . . . . . . . 3 . 2 Worker 11 | . . . 1 . . . . . . . 5 . 4 . . . . . . . 1 . . . Builder 4 | . . . 1 . . . . . . . . . 2 . . . . . . . 1 . . . Tunneler 2 | . . . 1 . . . . . . . . . . . . . . . . . 1 . . . Hauler 3 | . . . 1 . . . . . . . 1 . . . . . . . . . 1 . . . Recycler 1 | . . . . . . . . . . . . . 1 . . . . . . . . . . . Mechanic 1 | . . . . . . . . . . . . . 1 . . . . . . . . . . . Operator 10 | . . . 1 . . . . . . . . . 1 . . . . . . 7 1 . . . Watcher 5 | . . . . . . . . . . . 1 . 1 . . . . . 1 . 2 . . . Swarmer 30 | . . . 6 . 2 . . . . . . 14 5 . . . . . . . . 3 . . Grunt 45 | . . 2 12 3 1 . . . . . 1 3 4 . . . . 5 . . . 10 . 4 Brawler 2 | . . . . . . . . . . . . 1 . . . . . . . . . . . 1 Duelist 1 | . . . . . . . . . 1 . . . . . . . . . . . . . . . Protector 3 | . . . . . . . . . . . . . . . . . . . . . . . . 3 Sentry 17 | . . . 1 . 1 3 4 . . . . 4 1 . . . . 2 . . . 1 . . Demolisher 2 | . . . . . . . . . . . . . . . . . . . . . . 2 . . Specialist 1 | . . . . . . . . . . . . . . . . . . . . . . . . 1 Hunter 16 | . . . . . . . 1 . 2 . . 1 2 . . . . . . . . 7 . 3 Programmer 17 | . . . . . . . 1 . . . . 1 8 . . . . 1 . . . 1 . 5 Cetus Guard 3 | . . . . . . . . . . . . . . . . . . . 3 . . . . . Enhanced Grunt 1 | . . . . . . . . . . . . . . . . . . . . . 1 . . . Striker 7 | . . . . . . . . . . . . . . . . . . . . . . 4 . 3 Executioner 3 | . . . . . . . . . . . . . . . . . . . . . . 2 . 1 Best Kill Streak 11 | . . 2 6 3 3 1 2 . 2 . 6 11 5 . . . . 1 3 3 6 8 . 8 Combat Bots Only 11 | . . 2 5 3 3 1 2 . 2 . 1 11 5 . . . . 1 2 . . 8 . 8 Max Kills in Single Turn 8 | . . 1 3 1 2 1 1 . 1 . 5 5 3 . . . . 1 2 1 8 1 . 2 Gunslinging 1 | . . . . . . . . . . . . . . . . . . . . . . . . 1 Exploded 5 | . . 1 2 . . . . . . . . 5 1 . . . . . . . . . . . Melee . | . . . . . . . . . . . . . . . . . . . . . . . . . Uniques/NPCs Destroyed . | . . . . . . . . . . . . . . . . . . . . . . . . . Combat | -11 -10 -10 -9 -9 -8 -8 -8 -8 -6 -6 -6 -6 -5 -5 -5 -4 -4 -4 -4 -4 -4 -3 -3 -3 -------- Run | Yrd Mat Min Mat Min Mat Sto Rec Scr Fac Gar Fac Gar Fac Upp War Pro Fac Ext Cet Arc Hub Res Qua Frg Hostile Shots Fired 1760 | . 6 15 77 10 21 16 26 . 1 . 50 266 157 1 13 16 13 184 83 8 24 437 16 320 Missed 681 | . 2 4 22 2 8 5 7 . 1 . 18 93 42 1 5 8 2 63 29 4 11 126 12 216 Hits 1079 | . 4 11 55 8 13 11 19 . . . 32 173 115 . 8 8 11 121 54 4 13 311 4 104 Melee 32 | . . . . . . . . . . . . 2 . . . . . . . . . 19 . 11 Projectile 1047 | . 4 11 55 8 13 11 19 . . . 32 171 115 . 8 8 11 121 54 4 13 292 4 93 AOE 3 | . . . . . . . . . . . . . . . . . . . . . . 3 . . Critical Strikes 50 | . . 2 2 . 1 . . . . . . 2 9 . . . . 6 3 . . 21 . 4 Part Disruptions 2 | . . . . . . . . . . . . . 1 . . . . . . . . . . 1 Damage Taken 21419 | . 65 147 677 109 128 162 284 . 45 . 428 2057 2152 . 151 164 239 2081 1482 109 289 8020 40 2590 Core 2656 | . . 46 69 18 9 26 27 . 14 . 42 315 285 . 22 . . 306 180 . . 1034 . 263 Absorbed by Shields 668 | . . . . . . . 6 . 14 . 22 . . . . . . 536 . . . . 15 75 Reduced by Siege Mode 81 | . . . . . . . . . . . . . . . . . . . . . . 81 . . Redirected to Shielding 248 | . . . . . . . . . . . . . . . . . 84 112 . . . 52 . . Regen/Repaired (Parts) 546 | . . . 119 . . . . . . . . . . . . . 81 . . . . 346 . . Core Remaining (%) 75 | 100 . 81 . 78 . . . 88 . . . 56 . . . 69 . . . . 57 . . . Volleys Fired 522 | . . 5 31 5 7 5 12 . 4 . 15 42 83 . . 2 17 62 10 43 6 80 3 90 Largest 4 | . . 2 2 2 2 2 3 . 2 . 2 3 3 . . 1 2 3 3 2 3 4 1 3 Hottest 470 | . . 50 93 74 74 74 87 . 37 . 124 156 156 . . 225 225 237 220 185 279 470 105 364 Shots Fired 1020 | . . 10 54 10 14 10 28 . 7 . 29 67 129 2 . 2 23 113 25 81 8 249 3 156 Gun 553 | . . 5 19 . . 1 16 . . . 7 36 25 1 . 1 10 75 19 39 5 174 . 120 Cannon 387 | . . . 16 10 14 9 12 . 3 . 22 17 92 1 . . 6 31 4 38 3 70 3 36 Launcher 35 | . . 5 19 . . . . . . . . 8 . . . . . . . . . 3 . . Special 45 | . . . . . . . . . 4 . . 6 12 . . 1 7 7 2 4 . 2 . . Kinetic 455 | . . 5 16 10 14 10 28 . 3 . 14 21 82 1 . . 6 31 12 . . 82 . 120 Thermal 412 | . . . 19 . . . . . . . 8 . 6 1 . 1 10 75 11 77 8 157 3 36 Explosive 35 | . . 5 19 . . . . . . . . 8 . . . . . . . . . 3 . . Electromagnetic 73 | . . . . . . . . . . . 7 32 29 . . . . . . . . 5 . . Impact 10 | . . . . . . . . . 4 . . 6 . . . . . . . . . . . . Robot Hit Streak 40 | . . 7 8 5 5 7 20 . 4 . 17 6 15 . . . 9 8 12 4 . 19 . 40 Robot Miss Streak 14 | . . 1 4 4 6 4 5 . 4 . 14 5 6 . . 1 2 4 1 4 . 8 . 2 Penetration Max 2 | . . . . . . . . . . . . . . . . . . . . . . 1 . 2 Secondary Targets 4 | . . . . . . . . . . . . 1 . . . . . 1 . . . . . 2 Max Gunslinging Chain 1 | . . . . . . . . . . . . 1 . . . . . 1 . . . . . 1 Shots Hit Robots 641 | . . 8 39 9 12 8 20 . 6 5 20 41 77 . . . 13 73 17 36 . 136 . 121 Core Hits 409 | . . 3 44 12 13 10 18 . 6 . 30 43 49 . . . 3 23 8 15 17 64 . 51 Critical Kills 17 | . . . . . . . . . . . . . . . . . . . 2 1 . 4 . 10 Critical Parts Destroyed 18 | . . . . . . . . . . . . 1 . . . . . . 1 . . 1 . 15 Critical Strikes 53 | . . . 1 . . . . . . . . 2 5 . . . 1 7 3 1 . 6 . 27 Burn 5 | . . . . . . . . . . . . . . . . . . 5 . . . . . . Meltdown 1 | . . . . . . . . . . . . . . . . . . . . 1 . . . . Destroy 36 | . . . . . . . . . . . . . . . . . . . 3 . . 6 . 27 Blast 7 | . . . . . . . . . . . . . 4 . . . 1 2 . . . . . . Corrupt 2 | . . . . . . . . . . . . 1 1 . . . . . . . . . . . Smash 1 | . . . . . . . . . . . . 1 . . . . . . . . . . . . Sever 1 | . . . 1 . . . . . . . . . . . . . . . . . . . . . Melee Attacks 30 | . . . 6 7 . 1 1 . . 5 4 6 . . . . . . . . . . . . Impact . | . . . . . . . . . . . . . . . . . . . . . . . . . Slashing 15 | . . . 6 7 . 1 1 . . . . . . . . . . . . . . . . . Piercing . | . . . . . . . . . . . . . . . . . . . . . . . . . Sneak Attacks 10 | . . . 1 . . . . . . 5 4 . . . . . . . . . . . . . Combat Hostiles 1 | . . . . . . . . . . . 1 . . . . . . . . . . . . . Follow-up Attacks . | . . . . . . . . . . . . . . . . . . . . . . . . . Damage Inflicted 23189 | . . 250 1885 217 230 164 348 . 205 . 836 1720 3503 . . . 225 1958 490 1179 1016 4701 . 4262 Guns 9885 | . . 38 191 . . 17 143 . . . 82 400 434 . . . 90 1202 376 521 . 2710 . 3681 Cannons 7934 | . . . 330 217 230 147 205 . 50 . 414 395 2248 . . . 135 735 114 658 . 1475 . 581 Explosions 4845 | . . 212 1271 . . . . . . . 340 648 821 . . . . 21 . . 1016 516 . . Melee 93 | . . . 93 . . . . . . . . . . . . . . . . . . . . . Ramming . | . . . . . . . . . . . . . . . . . . . . . . . . . Kinetic 10435 | . . 38 330 217 230 164 348 . 50 . 387 417 2159 . . . 135 735 216 . . 1328 . 3681 Thermal 7229 | . . . 191 . . . . . . . 27 . 716 . . . 90 1223 274 1179 . 2948 . 581 Explosive 2628 | . . 212 1271 . . . . . . . . 648 133 . . . . . . . . 364 . . Electromagnetic 2372 | . . . . . . . . . . . 422 378 495 . . . . . . . 1016 61 . . Impact 432 | . . . . . . . . . 155 . . 277 . . . . . . . . . . . . Slashing 93 | . . . 93 . . . . . . . . . . . . . . . . . . . . . Piercing . | . . . . . . . . . . . . . . . . . . . . . . . . . Highest Corruption 13 | . . . . . . . 1 . . . 2 9 7 7 7 . . 1 11 11 2 2 2 13 Average Corruption 5 | . . . . . . . 1 . . . 1 8 5 7 7 . . 1 10 9 2 1 2 6 Corruption Purged 16 | . . . . . . . . . . . 2 2 . . . . . . . 12 . . . . Corruption Blocked . | . . . . . . . . . . . . . . . . . . . . . . . . . Effects 124 | . . . . . . . 9 . . . 2 27 32 6 1 . . . 13 20 . . 5 9 Message Errors 32 | . . . . . . . 2 . . . . 9 9 1 . . . . 5 6 . . . . Matter Fused 25 | . . . . . . . 3 . . . 1 7 6 1 . . . . 1 2 . . 3 1 Heat Flow Errors 15 | . . . . . . . 3 . . . . 1 1 . 1 . . . 1 4 . . 2 2 Energy Discharges 11 | . . . . . . . . . . . . 3 2 1 . . . . 2 1 . . . 2 Parts Rejected 1 | . . . . . . . . . . . . . . . . . . . 1 . . . . . Parts Fused 3 | . . . . . . . . . . . . 1 2 . . . . . . . . . . . Data Loss (minor) 11 | . . . . . . . . . . . . 2 2 1 . . . . 1 3 . . . 2 Data Loss (major) 8 | . . . . . . . . . . . . 1 5 . . . . . . 1 . . . 1 Misfires 10 | . . . . . . . 1 . . . 1 1 2 2 . . . . 1 2 . . . . Alerts 4 | . . . . . . . . . . . . 1 2 . . . . . 1 . . . . . Weapon Failures 4 | . . . . . . . . . . . . 1 1 . . . . . . 1 . . . 1 Overload Shots 8 | . . . . . . . . . . . . . . . . 1 3 . . . 1 3 . . Effects 1 | . . . . . . . . . . . . . . . . . . . . . 1 . . . Heat Surge 1 | . . . . . . . . . . . . . . . . . . . . . 1 . . . Overflow Damage 871 | . . 6 4 . . . . . . . 4 152 508 . . . . 11 . 89 45 52 . . Projectiles 398 | . . . . . . . . . . . 4 135 159 . . . . 11 . 89 . . . . Explosions 473 | . . 6 4 . . . . . . . . 17 349 . . . . . . . 45 52 . . Melee . | . . . . . . . . . . . . . . . . . . . . . . . . . Knockbacks 49 | . . . 4 6 6 . 3 . 1 . 4 7 18 . . . . . . . . . . . Impact . | . . . . . . . . . . . . . . . . . . . . . . . . . Kinetic 48 | . . . 4 6 6 . 3 . 1 . 4 7 17 . . . . . . . . . . . Secondary 1 | . . . . . . . . . . . . . 1 . . . . . . . . . . . Self-Inflicted Damage 585 | . . . 21 . . . . . . . . 43 169 . . . . . . . 167 185 . . Shots 8 | . . . 1 . . . . . . . . 1 2 . . . . . . . 2 2 . . Rammed . | . . . . . . . . . . . . . . . . . . . . . . . . . Targets Rammed . | . . . . . . . . . . . . . . . . . . . . . . . . . Kicked . | . . . . . . . . . . . . . . . . . . . . . . . . . Crushed . | . . . . . . . . . . . . . . . . . . . . . . . . . Highest Temperature 905 | . . 15 162 117 39 14 291 . . . 72 138 268 41 172 177 271 410 348 191 208 905 203 225 Average Temperature 105 | . . 6 40 62 20 9 84 . . . 26 38 57 19 87 97 72 136 134 39 100 194 104 78 Received Heat Transfer 3473 | . 36 117 222 63 45 54 34 . 7 . 37 264 75 . . . 57 432 270 18 . 1664 . 78 Effects 35 | . . . . . . . . . . . . . . . . . . 3 1 . . 31 . . Shutdowns 6 | . . . . . . . . . . . . . . . . . . 1 . . . 5 . . Energy Bleed 2 | . . . . . . . . . . . . . . . . . . . . . . 2 . . Interference 10 | . . . . . . . . . . . . . . . . . . 2 . . . 8 . . Matter Decay 4 | . . . . . . . . . . . . . . . . . . . . . . 4 . . Short Circuit 3 | . . . . . . . . . . . . . . . . . . . 1 . . 2 . . Damage (minor) 2 | . . . . . . . . . . . . . . . . . . . . . . 2 . . Damage (major) 8 | . . . . . . . . . . . . . . . . . . . . . . 8 . . Siege Activations 1 | . . . . . . . . . . . . . . . . . . . . . . 1 . . Total Turns 43 | . . . . . . . . . . . . . . . . . . . . . . 43 . . Longest Duration 43 | . . . . . . . . . . . . . . . . . . . . . . 43 . . Martial Activations . | . . . . . . . . . . . . . . . . . . . . . . . . . Shielding Activations . | . . . . . . . . . . . . . . . . . . . . . . . . . Robots Disrupted . | . . . . . . . . . . . . . . . . . . . . . . . . . Combat Hostiles . | . . . . . . . . . . . . . . . . . . . . . . . . . Robots Corrupted 3 | . . . . . . . . . . . . 3 . . . . . . . . . . . . Combat Hostiles 3 | . . . . . . . . . . . . 3 . . . . . . . . . . . . Parts Fried 10 | . . . . . . . . . . . 2 2 3 . . . . . . . 3 . . . Impact Corruptions 3 | . . . . . . . . . . . . 3 . . . . . . . . . . . . Robots Melted 1 | . . . . . . . . . . . . . . . . . . . . 1 . . . . Combat Hostiles . | . . . . . . . . . . . . . . . . . . . . . . . . . Parts Melted 5 | . . . . . . . . . . . . . . . . . . 3 . 1 . 1 . . Heat Transferred 7479 | . . . 407 . . . . . . . 50 . 387 . . . 148 2300 309 1332 . 1963 . 583 Parts Sabotaged . | . . . . . . . . . . . . . . . . . . . . . . . . . Parts Stolen . | . . . . . . . . . . . . . . . . . . . . . . . . . Parts Stripped . | . . . . . . . . . . . . . . . . . . . . . . . . . Power Chain Reactions 3 | . . . . . . . . . . . 1 . . . . . . . . . . 2 . . Alert | -11 -10 -10 -9 -9 -8 -8 -8 -8 -6 -6 -6 -6 -5 -5 -5 -4 -4 -4 -4 -4 -4 -3 -3 -3 ------- Run | Yrd Mat Min Mat Min Mat Sto Rec Scr Fac Gar Fac Gar Fac Upp War Pro Fac Ext Cet Arc Hub Res Qua Frg Maximum Alert Level 4 | . . . 1 . . . . . . 2 3 4 3 . . . . 2 1 1 2 2 1 1 Low Security (%) 50 | 100 100 100 43 100 100 100 100 . 100 12 . . . . . . 100 47 13 91 95 55 92 89 Level 1 21 | . . . 56 . . . . . . 71 17 . 6 . . . . 48 86 8 . 36 7 10 Level 2 15 | . . . . . . . . . . 16 9 12 93 . . . . 4 . . 4 7 . . Level 3 9 | . . . . . . . . . . . 73 52 . . . . . . . . . . . . Level 4 2 | . . . . . . . . . . . . 34 . . . . . . . . . . . . Level 5 . | . . . . . . . . . . . . . . . . . . . . . . . . . High Security . | . . . . . . . . . . . . . . . . . . . . . . . . . Max Security . | . . . . . . . . . . . . . . . . . . . . . . . . . Peak Influence 1203 | . 30 65 301 118 80 45 105 . 60 513 934 1203 702 . . . 143 448 318 228 670 568 208 259 Initial 631 | . . . 9 78 . 16 5 . . 5 268 571 631 . . . 46 46 235 113 35 351 159 79 Average 290 | . 8 10 169 33 41 16 23 . 18 262 713 926 556 . . . 51 192 253 151 73 207 174 99 Influence Increases 10127 | . 30 73 636 70 100 105 336 . 101 508 1195 922 1081 . . 105 212 924 323 284 856 1303 153 810 Destroy 0b10 Robot/C 4020 | . . 40 380 60 80 60 120 . 40 . 380 520 500 . . . 60 440 160 60 60 700 . 360 Destroy 0b10 Robot/NC 260 | . . . 25 . . . 5 . 5 . 65 . 55 . . . . 10 10 35 30 . . 20 Destroy Leader 690 | . . 10 72 10 20 30 . . 12 . 98 40 112 . . . 10 70 . . 26 150 . 30 Allied During Kill 1031 | . . . . . . . 8 . 10 . 345 26 22 . . . 15 126 106 95 112 166 . . Trap Triggered on 0b10 40 | . . . . . . . . . . . 10 . . . . . . . . . . . . 30 Successful Hack 390 | . . . 6 . . 14 23 . 18 8 32 . 28 . . . 13 22 . . . 30 57 139 Select Force Hacks 210 | . 30 . . . . . 180 . . . . . . . . . . . . . . . . . Disable Machine 1020 | . . 15 45 . . . . . 15 . 210 . 135 . . . 90 90 15 60 165 105 45 30 Anti-Garrison Action 750 | . . . . . . . . . . 500 . 250 . . . . . . . . . . . . Destroy Structure 1266 | . . 8 78 . . 1 . . 1 . 55 41 184 . . . 24 106 32 34 448 152 6 96 Partial Spotted 30 | . . . . . . . . . . . . . 15 . . . . . . . . . 15 . Lose Combat Pursuer 420 | . . . 30 . . . . . . . . 45 30 . . 105 . 60 . . 15 . 30 105 Influence Decreases 9888 | . 30 48 458 273 60 130 351 . 93 3 891 536 1604 342 338 30 192 599 459 465 289 1689 295 713 Entered New Map 2840 | . . . 16 125 . 24 10 . . 3 245 246 572 252 338 . 29 49 185 171 68 319 125 63 Time Decay 4459 | . 30 48 412 148 60 106 331 . 93 . 386 . 592 90 . 30 153 310 214 294 72 580 170 340 Lost Part 1105 | . . . 30 . . . 10 . . . 10 150 110 . . . 10 170 60 . 5 410 . 140 Lost Ally 448 | . . . . . . . . . . . 100 140 30 . . . . 70 . . 8 80 . 20 Purge Threat 1036 | . . . . . . . . . . . 150 . 300 . . . . . . . 136 300 . 150 Squads Dispatched 49 | . 1 1 3 . . . . . 1 . 6 . 6 . . . 4 4 . . 3 13 1 6 Investigation 29 | . 1 1 2 . . . . . 1 . 2 . 2 . . . 3 3 . . . 10 . 4 Extermination 8 | . . . . . . . . . . . 1 . 4 . . . 1 . . . 1 . 1 . Reinforcement 11 | . . . 1 . . . . . . . 2 . . . . . . 1 . . 2 3 . 2 Assault 1 | . . . . . . . . . . . 1 . . . . . . . . . . . . . Garrison . | . . . . . . . . . . . . . . . . . . . . . . . . . Intercept . | . . . . . . . . . . . . . . . . . . . . . . . . . Searches Triggered . | . . . . . . . . . . . . . . . . . . . . . . . . . Construction Impeded 2 | . . . . . . . . . . . 2 . . . . . . . . . . . . . Haulers Reinforced . | . . . . . . . . . . . . . . . . . . . . . . . . . Active Scanning Responses . | . . . . . . . . . . . . . . . . . . . . . . . . . Cargo Convoy Interrupts . | . . . . . . . . . . . . . . . . . . . . . . . . . Stealth | -11 -10 -10 -9 -9 -8 -8 -8 -8 -6 -6 -6 -6 -5 -5 -5 -4 -4 -4 -4 -4 -4 -3 -3 -3 --------- Run | Yrd Mat Min Mat Min Mat Sto Rec Scr Fac Gar Fac Gar Fac Upp War Pro Fac Ext Cet Arc Hub Res Qua Frg Distress Signals 26 | . . . 2 . . . . . . . 1 . 2 . . . 2 1 2 . 1 7 2 6 Communications Jammed 184 | . . . . . . . . . . . . . 4 . . . 9 1 141 . . 29 . . Distress Signals 184 | . . . . . . . . . . . . . 4 . . . 9 1 141 . . 29 . . Times Spotted 406 | . 3 4 40 3 5 4 7 . 3 . 23 32 40 . 2 4 10 34 10 29 3 53 8 89 Peak Tracking Total 15 | . 3 2 7 3 4 2 5 . 2 . 3 12 5 . 2 7 4 9 5 2 4 6 4 15 Tactical Retreats 18 | . . . 2 . . . . . . . . 3 2 . . 2 . 2 . . 1 . 2 4 Traps | -11 -10 -10 -9 -9 -8 -8 -8 -8 -6 -6 -6 -6 -5 -5 -5 -4 -4 -4 -4 -4 -4 -3 -3 -3 ------- Run | Yrd Mat Min Mat Min Mat Sto Rec Scr Fac Gar Fac Gar Fac Upp War Pro Fac Ext Cet Arc Hub Res Qua Frg Traps Triggered 14 | . . . 2 . . . . . . . 2 3 . . . . . . . . 1 3 3 . Indirectly 1 | . . . . . . . . . . . . . . . . . . . . . 1 . . . Trap Hack Attempts 1 | . . . . . . . . . . . 1 . . . . . . . . . . . . . Triggered . | . . . . . . . . . . . . . . . . . . . . . . . . . Disarmed . | . . . . . . . . . . . . . . . . . . . . . . . . . Reprogrammed 4 | . . . . . . . . . . . 1 . . . . . . . . . . . . 3 Reused 4 | . . . . . . . . . . . 1 . . . . . . . . . . . . 3 Traps Extracted . | . . . . . . . . . . . . . . . . . . . . . . . . . Installed . | . . . . . . . . . . . . . . . . . . . . . . . . . Triggered 4 | . . . . . . . . . . . 1 . . . . . . . . . . . . 3 Machines | -11 -10 -10 -9 -9 -8 -8 -8 -8 -6 -6 -6 -6 -5 -5 -5 -4 -4 -4 -4 -4 -4 -3 -3 -3 ---------- Run | Yrd Mat Min Mat Min Mat Sto Rec Scr Fac Gar Fac Gar Fac Upp War Pro Fac Ext Cet Arc Hub Res Qua Frg Machines Disabled 77 | . . 1 3 . . . . . 1 4 14 4 9 . . 1 6 6 1 4 11 7 3 2 Max in Single Turn 11 | . . 1 1 . . . . . 1 1 8 2 2 . . 1 . 4 1 1 11 1 1 1 Garrison Access 2 | . . . . . . . . . . . . . . . . . . . . . . 1 1 . Garrison Relay 6 | . . . . . . . . . . 4 . 2 . . . . . . . . . . . . Phase Generator 1 | . . . . . . . . . . . . 1 . . . . . . . . . . . . Network Hub 2 | . . . . . . . . . . . . . . . . . . . . . 2 . . . Energy Cycler 4 | . . . . . . . . . . . . . . . . . . 4 . . . . . . Machines Repaired . | . . . . . . . . . . . . . . . . . . . . . . . . . Machines Dismantled 9 | . . . . . . . . . . 4 . 1 . . . . . . 1 . . . 3 . Machines Sabotaged . | . . . . . . . . . . . . . . . . . . . . . . . . . Overloaded Fab Kills . | . . . . . . . . . . . . . . . . . . . . . . . . . Hacking | -11 -10 -10 -9 -9 -8 -8 -8 -8 -6 -6 -6 -6 -5 -5 -5 -4 -4 -4 -4 -4 -4 -3 -3 -3 --------- Run | Yrd Mat Min Mat Min Mat Sto Rec Scr Fac Gar Fac Gar Fac Upp War Pro Fac Ext Cet Arc Hub Res Qua Frg Machines Accessed 98 | . 2 1 6 . . 2 10 2 5 2 8 1 10 . . . 8 7 2 1 1 12 9 9 Terminals 56 | . 1 . 5 . . 2 4 . 2 2 5 1 6 . . . 3 5 2 . 1 6 6 5 Fabricators 4 | . . . . . . . . . 1 . 1 . . . . . 2 . . . . . . . Repair Stations 5 | . . . 1 . . . . . . . . . 1 . . . 1 . . . . 1 . 1 Recycling Units 22 | . 1 . . . . . 6 . 1 . 1 . 2 . . . 2 2 . . . 4 . 3 Scanalyzers 3 | . . . . . . . . . . . . . 1 . . . . . . . . . 2 . Garrison Access 4 | . . . . . . . . . 1 . 1 . . . . . . . . . . 1 1 . Total Hacks 265 | . 5 1 15 . . 5 16 9 8 2 21 1 22 . . . 14 13 3 2 4 36 24 64 Successful 146 | . 3 1 5 . . 2 12 9 4 2 14 . 13 . . . 10 7 . 2 1 11 13 37 Failed 119 | . 2 . 10 . . 3 4 . 4 . 7 1 9 . . . 4 6 3 . 3 25 11 27 Catastrophic 21 | . 1 . 3 . . 1 . . . . 1 1 1 . . . 1 1 . . . 4 3 4 Database Lockouts . | . . . . . . . . . . . . . . . . . . . . . . . . . Manual 167 | . 5 . 9 . . 1 12 . 4 . 13 . 16 . . 1 12 7 1 . . 27 11 48 Terminals 186 | . 4 . 13 . . 5 10 . 4 2 13 1 16 . . . 8 9 3 . 4 22 15 57 Fabricators 8 | . . . . . . . . . 1 . 4 . . . . . 3 . . . . . . . Repair Stations 9 | . . . 2 . . . . . . . . . 2 . . . 1 . . . . 3 . 1 Recycling Units 33 | . 1 . . . . . 6 . 2 . 2 . 3 . . . 2 4 . . . 7 . 6 Scanalyzers 8 | . . . . . . . . . . . . . 1 . . . . . . . . . 7 . Garrison Access 9 | . . . . . . . . . 1 . 2 . . . . . . . . . . 4 2 . Terminal Hacks 69 | . 1 1 1 . . 2 4 9 . 2 4 . 6 . . . 3 4 . 2 1 5 4 20 Record 9 | . . . . . . . . 4 . . . . . . . . . 1 . 2 . 1 1 . Part Schematic 2 | . . . . . . . 2 . . . . . . . . . . . . . . . . . Robot Analysis 8 | . 1 . . . . . 1 5 . . . . . . . . . 1 . . . . . . Open Door 4 | . . 1 . . . 1 . . . . . . . . . . 1 1 . . . . . . Level Access Points 2 | . . . . . . . . . . . . . . . . . . . . . . 1 . 1 Branch Access Points 6 | . . . 1 . . 1 . . . . . . 1 . . . 1 . . . . 1 1 . Emergency Access Points 2 | . . . . . . . . . . 1 . . . . . . . . . . . . . 1 Terminal Index 5 | . . . . . . . . . . . 1 . 2 . . . 1 . . . . . . 1 Repair Station Index 1 | . . . . . . . . . . . . . . . . . . . . . . . . 1 Recycling Unit Index 1 | . . . . . . . . . . . . . . . . . . . . . . . . 1 Garrison Index 2 | . . . . . . . . . . . 1 . . . . . . . . . . . . 1 Alert Level 1 | . . . . . . . . . . . 1 . . . . . . . . . . . . . Unreport Threat 7 | . . . . . . . . . . . 1 . 2 . . . . . . . 1 2 . 1 Locate Traps 3 | . . . . . . . . . . . . . . . . . . . . . . . 1 2 Reprogram Traps 1 | . . . . . . . . . . . . . . . . . . . . . . . . 1 Security Status 1 | . . . . . . . . . . . . . . . . . . . . . . . . 1 Surveillance Status 3 | . . . . . . . . . . . . . . . . . . . . . . . . 3 Patrol Status 1 | . . . . . . . . . . . . . . . . . . . . . . . . 1 Recall Investigation 1 | . . . . . . . . . . . . . . . . . . 1 . . . . . . Hauler Manifests 1 | . . . . . . . . . . . . . . . . . . . . . . . . 1 Registered Components 1 | . . . . . . . . . . . . . . . . . . . . . . . . 1 Zone Layout 6 | . . . . . . . 1 . . . . . 1 . . . . . . . . . 1 3 Garrison Registry 1 | . . . . . . . . . . 1 . . . . . . . . . . . . . . Fabricator Hacks 4 | . . . . . . . . . 1 . 2 . . . . . 1 . . . . . . . Network Status 3 | . . . . . . . . . 1 . 1 . . . . . 1 . . . . . . . Load Schematic 1 | . . . . . . . . . . . 1 . . . . . . . . . . . . . Repair Station Hacks 2 | . . . 2 . . . . . . . . . . . . . . . . . . . . . Scan Component 1 | . . . 1 . . . . . . . . . . . . . . . . . . . . . Repair 1 | . . . 1 . . . . . . . . . . . . . . . . . . . . . Recycling Unit Hacks 1 | . . . . . . . . . . . . . 1 . . . . . . . . . . . Report Inventory 1 | . . . . . . . . . . . . . 1 . . . . . . . . . . . Scanalyzer 4 | . . . . . . . . . . . . . . . . . . . . . . . 4 . Insert Component 4 | . . . . . . . . . . . . . . . . . . . . . . . 4 . Garrison Access Hacks 5 | . . . . . . . . . 1 . 2 . . . . . . . . . . 1 1 . Unlock Access 2 | . . . . . . . . . 1 . 1 . . . . . . . . . . . . . Seal Access 2 | . . . . . . . . . . . . . . . . . . . . . . 1 1 . Coupler Status 1 | . . . . . . . . . . . 1 . . . . . . . . . . . . . Unauthorized Hacks 61 | . 2 . 2 . . . 8 . 2 . 6 . 6 . . . 6 3 . . . 5 4 17 Terminals 33 | . 1 . 2 . . . 2 . 1 . 3 . 3 . . . 1 1 . . . 1 4 14 Track 6 | . . . . . . . . . . . . . . . . . . . . . . . 3 3 Botnet 19 | . 1 . 2 . . . 2 . 1 . 3 . 3 . . . 1 1 . . . 1 1 3 Disrupt 2 | . . . . . . . . . . . . . . . . . . . . . . . . 2 Operators 1 | . . . . . . . . . . . . . . . . . . . . . . . . 1 Skim 5 | . . . . . . . . . . . . . . . . . . . . . . . . 5 Fabricators 4 | . . . . . . . . . . . 2 . . . . . 2 . . . . . . . Report 1 | . . . . . . . . . . . . . . . . . 1 . . . . . . . Liberate 1 | . . . . . . . . . . . 1 . . . . . . . . . . . . . Haulers 2 | . . . . . . . . . . . 1 . . . . . 1 . . . . . . . Repair Stations 3 | . . . . . . . . . . . . . 1 . . . 1 . . . . 1 . . Mechanics 1 | . . . . . . . . . . . . . 1 . . . . . . . . . . . Patch 2 | . . . . . . . . . . . . . . . . . 1 . . . . 1 . . Recycling Units 21 | . 1 . . . . . 6 . 1 . 1 . 2 . . . 2 2 . . . 3 . 3 Tunnel 7 | . 1 . . . . . 6 . . . . . . . . . . . . . . . . . Fedlink 13 | . . . . . . . . . 1 . 1 . 2 . . . 2 2 . . . 3 . 2 Scraphulk 1 | . . . . . . . . . . . . . . . . . . . . . . . . 1 Scanalyzers . | . . . . . . . . . . . . . . . . . . . . . . . . . Garrison Access . | . . . . . . . . . . . . . . . . . . . . . . . . . Data Cores Recovered 2 | . . . . . . . . . . . 1 . 1 . . . . . . . . . . . Used . | . . . . . . . . . . . . . . . . . . . . . . . . . Hacking Detections 69 | . 1 . 6 . . 1 5 . 4 1 7 1 9 . . . 3 5 3 . . 8 7 8 Full Trace Events 1 | . . . . . . . . . . . . . . . . . . . . . . 1 . . Feedback Events . | . . . . . . . . . . . . . . . . . . . . . . . . . Feedback Blocked . | . . . . . . . . . . . . . . . . . . . . . . . . . Robot Schematics Acquired . | . . . . . . . . . . . . . . . . . . . . . . . . . Robots Built . | . . . . . . . . . . . . . . . . . . . . . . . . . Authchips . | . . . . . . . . . . . . . . . . . . . . . . . . . Time . | . . . . . . . . . . . . . . . . . . . . . . . . . Total Robot Build Rating . | . . . . . . . . . . . . . . . . . . . . . . . . . Part Schematics Acquired 2 | . . . . . . . 2 . . . . . . . . . . . . . . . . . Parts Built . | . . . . . . . . . . . . . . . . . . . . . . . . . Authchips . | . . . . . . . . . . . . . . . . . . . . . . . . . Time . | . . . . . . . . . . . . . . . . . . . . . . . . . Total Part Build Rating . | . . . . . . . . . . . . . . . . . . . . . . . . . Parts Repaired 1 | . . . 1 . . . . . . . . . . . . . . . . . . . . . Time 32 | . . . 32 . . . . . . . . . . . . . . . . . . . . . Parts Recycled . | . . . . . . . . . . . . . . . . . . . . . . . . . Recycled Matter . | . . . . . . . . . . . . . . . . . . . . . . . . . Retrieved Matter . | . . . . . . . . . . . . . . . . . . . . . . . . . Retrieved Components . | . . . . . . . . . . . . . . . . . . . . . . . . . Parts Scanalyzed . | . . . . . . . . . . . . . . . . . . . . . . . . . Part Schematics Acquired . | . . . . . . . . . . . . . . . . . . . . . . . . . Parts Damaged . | . . . . . . . . . . . . . . . . . . . . . . . . . Bothacking | -11 -10 -10 -9 -9 -8 -8 -8 -8 -6 -6 -6 -6 -5 -5 -5 -4 -4 -4 -4 -4 -4 -3 -3 -3 ------------ Run | Yrd Mat Min Mat Min Mat Sto Rec Scr Fac Gar Fac Gar Fac Upp War Pro Fac Ext Cet Arc Hub Res Qua Frg Used RIF Installer 2 | . . . . . . . . . . 1 . 1 . . . . . . . . . . . . Signal Jammer 1 | . . . . . . . . . . . . 1 . . . . . . . . . . . . Robots Hacked 22 | . . . . . . . . . . . 2 4 8 . . 1 5 1 . 1 . . . . Non-combat 9 | . . . . . . . . . . . 2 . 4 . . . 1 1 . 1 . . . . Combat 13 | . . . . . . . . . . . . 4 4 . . 1 4 . . . . . . . Robot Hacks Applied 24 | . . . . . . . . . . . 2 4 9 . . 1 6 1 . 1 . . . . parse_system 2 | . . . . . . . . . . . 1 . 1 . . . . . . . . . . . no_distress 1 | . . . . . . . . . . . 1 . . . . . . . . . . . . . find_chute 1 | . . . . . . . . . . . . . 1 . . . . . . . . . . . find_station 1 | . . . . . . . . . . . . . 1 . . . . . . . . . . . block_reporting 1 | . . . . . . . . . . . . . . . . . . 1 . . . . . . find_shortcuts 1 | . . . . . . . . . . . . . . . . . 1 . . . . . . . scatter_targeting 3 | . . . . . . . . . . . . . 2 . . . 1 . . . . . . . amplify_resonance 1 | . . . . . . . . . . . . . . . . . 1 . . . . . . . overwrite_iff 3 | . . . . . . . . . . . . 2 . . . 1 . . . . . . . . streamctrl_high 1 | . . . . . . . . . . . . . 1 . . . . . . . . . . . formatsys_low 3 | . . . . . . . . . . . . . 2 . . . . . . 1 . . . . formatsys_high 6 | . . . . . . . . . . . . 2 1 . . . 3 . . . . . . . Relay Couplers Released 28 | . . . . . . . . . . 19 . 9 . . . . . . . . . . . . Machine Destruction 28 | . . . . . . . . . . 19 . 9 . . . . . . . . . . . . Attached 8 | . . . . . . . . . . . . 3 3 . . . 2 . . . . . . . Fabnet Peak Effective % . | . . . . . . . . . . . . . . . . . . . . . . . . . Robots Rewired 14 | . . . . . . . 6 . . 3 1 . . . . . . 3 . 1 . . . . Allies Hacked 3 | . . . . . . . . . . . 1 1 1 . . . . . . . . . . . Hacks Repelled 1 | . . . . . . . . . . . 1 . . . . . . . . . . . . . Allies | -11 -10 -10 -9 -9 -8 -8 -8 -8 -6 -6 -6 -6 -5 -5 -5 -4 -4 -4 -4 -4 -4 -3 -3 -3 -------- Run | Yrd Mat Min Mat Min Mat Sto Rec Scr Fac Gar Fac Gar Fac Upp War Pro Fac Ext Cet Arc Hub Res Qua Frg Total Allies 44 | . . . . . . . 6 . . 5 7 5 4 . . 1 3 5 5 2 . . . 1 Largest Group 12 | . . . . . . . 6 6 6 9 12 6 3 . . 1 3 4 7 8 8 4 . 1 Highest-Rated Group 643 | . . . . . . . 116 116 116 309 427 230 86 . . 56 104 282 643 640 640 339 . 139 Highest-Rated Ally 159 | . . . . . . . 27 27 27 95 95 62 49 . . 56 47 159 128 96 96 96 . 139 Total Orders 44 | . . . . . . . 1 1 . 10 4 1 . . . 4 7 12 . . 1 3 . . STAY 16 | . . . . . . . . 1 . . 2 1 . . . . 4 6 . . 1 1 . . FOLLOW 14 | . . . . . . . . . . 2 2 . . . . . 3 6 . . . 1 . . DROP 3 | . . . . . . . . . . 3 . . . . . . . . . . . . . . PICKUP 2 | . . . . . . . . . . 2 . . . . . . . . . . . . . . COLLECT 4 | . . . . . . . 1 . . 3 . . . . . . . . . . . . . . EXPLORE 3 | . . . . . . . . . . . . . . . . 2 . . . . . 1 . . RETURN 2 | . . . . . . . . . . . . . . . . 2 . . . . . . . . Ally Attacks 418 | . . . . . . . 2 . 17 . 104 23 32 . . 4 20 72 36 17 13 60 . 18 Total Damage 12668 | . . . . . . . 75 . 236 . 3275 741 617 . . 147 697 2508 1501 725 441 1222 . 483 Kills 76 | . . . . . . . 1 . 1 . 25 2 8 . . . 5 16 6 3 3 5 . 1 Allies Corrupted 2 | . . . . . . . . . . . . 1 1 . . . . . . . . . . . Allies Melted . | . . . . . . . . . . . . . . . . . . . . . . . . . Intel | -11 -10 -10 -9 -9 -8 -8 -8 -8 -6 -6 -6 -6 -5 -5 -5 -4 -4 -4 -4 -4 -4 -3 -3 -3 ------- Run | Yrd Mat Min Mat Min Mat Sto Rec Scr Fac Gar Fac Gar Fac Upp War Pro Fac Ext Cet Arc Hub Res Qua Frg Active Infowar (turns) 7224 | . . . 214 . . . . . 327 974 905 897 1608 186 67 197 400 523 18 . . . 197 711 Optics 562 | . . . . . . . . . . . . . . . . . . . . . . . . 562 Sensors 6662 | . . . 214 . . . . . 327 974 905 897 1608 186 67 197 400 523 18 . . . 197 149 Robot Analysis Total 8 | . 1 . . . . . 1 5 . . . . . . . . . 1 . . . . . . Derelict Logs Recovered 6 | . . 1 . 3 . . . . . . . . . 2 . . . . . . . . . . Drone Launches 3 | . . . . . . . . . . . . . . . . 1 . . . . . 2 . . Drone Recoveries 1 | . . . . . . . . . . . . . . . . 1 . . . . . . . . Exploration | -11 -10 -10 -9 -9 -8 -8 -8 -8 -6 -6 -6 -6 -5 -5 -5 -4 -4 -4 -4 -4 -4 -3 -3 -3 ------------- Run | Yrd Mat Min Mat Min Mat Sto Rec Scr Fac Gar Fac Gar Fac Upp War Pro Fac Ext Cet Arc Hub Res Qua Frg Turns Passed 17211 | 108 121 578 1225 550 175 281 1041 1908 344 974 905 1286 1879 186 67 197 400 698 457 653 246 1798 350 784 Spaces Moved 11245 | 63 74 347 663 316 92 151 557 1167 189 528 486 556 1152 229 104 271 556 599 261 294 145 923 581 941 Core 8 | 2 . . . . . . . . . . . 6 . . . . . . . . . . . . Treads 6387 | 61 74 347 663 316 92 151 557 1167 189 528 486 255 . . . . . . 199 294 145 863 . . Legs 571 | . . . . . . . . . . . . 15 379 . . . . . . . . . . 177 Wheels . | . . . . . . . . . . . . . . . . . . . . . . . . . Hover 2458 | . . . . . . . . . . . . . 637 229 104 271 556 599 62 . . . . . Flight 1821 | . . . . . . . . . . . . 280 136 . . . . . . . . 60 581 764 Fastest Speed 20 | 50 160 160 160 160 160 160 160 160 163 162 162 120 59 65 65 65 60 55 65 160 160 28 20 20 Average Speed 125 | 156 160 160 160 160 160 160 160 161 163 162 162 186 132 65 65 65 60 66 137 160 160 153 24 40 Slowest Speed 800 | 160 160 160 160 160 160 160 160 163 163 163 163 800 269 65 65 65 60 129 160 160 160 240 111 120 Overloaded Moves 121 | . . . . . . . . . . . . . . . . . . . . . . . 54 67 Propulsion Burnouts . | . . . . . . . . . . . . . . . . . . . . . . . . . Robots Hopped 10 | . . . . . . . . . . . . . . . . . . . 6 . . 1 1 2 Potential Cave-ins 3 | . . . . . . . . . . . . . 3 . . . . . . . . . . . Cave-ins Triggered . | . . . . . . . . . . . . . . . . . . . . . . . . . Exploration Rate (%) 44 | 5 21 78 57 75 11 26 82 78 7 64 22 61 22 41 17 51 12 73 78 80 20 23 72 38 Regions Visited 24 Branch Regions 14 Pre-discovered Areas 12 | . 1 1 . 2 . . 6 . . . 1 . . 1 . . . . . . . . . . Known Exits Taken 19 | . . . 1 1 1 1 1 1 1 . 1 . 1 1 1 1 1 1 1 1 1 1 1 . Unknown Exits Taken 3 | 1 1 1 . . . . . . . . . . . . . . . . . . . . . . Scrap Searched 13 | . . 1 . 3 . . . 5 . . . . . 3 . 1 . . . . . . . . Spaces Dug 290 | . . . 2 1 . 1 . . . . . . 9 . . . 4 . . . 255 4 3 11 Terrain Destroyed 783 | . . 16 90 1 . 1 . . . . 1 52 131 2 . . 6 61 3 17 255 88 3 56 Melee 4 | . . . 2 1 . 1 . . . . . . . . . . . . . . . . . . Projectile 181 | . . . . . . . . . . . 1 . 32 2 . . 6 13 3 17 4 44 3 56 AOE 598 | . . 16 88 . . . . . . . . 52 99 . . . . 48 . . 251 44 . . Terrain Rammed . | . . . . . . . . . . . . . . . . . . . . . . . . . Walls Destroyed . | . . . . . . . . . . . . . . . . . . . . . . . . . Machines Disabled . | . . . . . . . . . . . . . . . . . . . . . . . . . Actions | -11 -10 -10 -9 -9 -8 -8 -8 -8 -6 -6 -6 -6 -5 -5 -5 -4 -4 -4 -4 -4 -4 -3 -3 -3 --------- Run | Yrd Mat Min Mat Min Mat Sto Rec Scr Fac Gar Fac Gar Fac Upp War Pro Fac Ext Cet Arc Hub Res Qua Frg Total 13283 | 70 77 360 765 340 106 181 685 1192 218 628 571 730 1376 265 103 290 603 794 310 401 151 1111 745 1211 Wait 720 | . . 2 17 8 . 1 70 8 14 48 51 60 50 35 . 12 10 84 7 48 . 29 106 60 Move 11203 | 62 73 346 662 315 91 150 556 1166 189 527 486 555 1151 228 103 270 555 598 248 293 144 920 578 937 Hop 10 | . . . . . . . . . . . . . . . . . . . 6 . . 1 1 2 Pick Up 192 | 2 4 4 13 2 3 11 3 5 5 15 2 13 21 1 . 2 2 12 9 4 . 22 11 26 Fast Attach 108 | 6 . . 4 . 2 1 . 3 . 1 3 8 18 1 . 1 6 10 4 3 . 14 10 13 Attach 113 | . . . 6 . 1 . . . 3 2 1 10 11 . . . 2 12 6 . . 29 7 23 Detach 23 | . . . 1 . . . . . . 1 . . 3 . . . 1 . . . . 3 3 11 Swap 90 | . . 1 13 2 . 4 1 1 1 1 3 7 10 . . 1 3 10 6 3 1 10 2 10 Drop 154 | . . 2 13 1 2 8 3 9 2 15 4 5 27 . . 2 6 6 5 7 . 3 6 28 Fire 522 | . . 5 31 5 7 5 12 . 4 . 15 42 83 . . 2 17 62 10 43 6 80 3 90 Melee 29 | . . . 5 7 . 1 1 . . 5 4 6 . . . . . . . . . . . . Ram . | . . . . . . . . . . . . . . . . . . . . . . . . . Kick . | . . . . . . . . . . . . . . . . . . . . . . . . . Crush . | . . . . . . . . . . . . . . . . . . . . . . . . . Escape Stasis 18 | . . . . . . . . . . . . 18 . . . . . . . . . . . . Rewire 44 | . . . . . . . 39 . . . . 2 2 . . . 1 . . . . . . . Trap 1 | . . . . . . . . . . . 1 . . . . . . . . . . . . . Miscellaneous 56 | . . . . . . . . . . 13 1 4 . . . . . . 9 . . . 18 11 Route ------- -11/Scrapyard -10/Materials -10/Mines (discovered 3 exits: *Mat x2 / [*Exi]) -9/Materials (discovered 4 exits: *Mat x2 / *Min x2) -9/Mines (discovered 2 exits: *Mat x2) -8/Materials -8/Storage -8/Recycling (discovered 2 exits: *Fac / *Scr) -8/Scraptown (discovered 2 exits: *Fac x2) -6/Factory (discovered 2 exits: *Low / Gar) -6/Garrison (discovered 3 exits: *Fac x3) -6/Factory (discovered 2 exits: *Fac / Gar) -6/Garrison (discovered 3 exits: *Fac x2 / [*Fac]) -5/Factory (discovered 2 exits: *Upp x2) -5/Upper Caves -5/Warlord -4/Proximity Caves -4/Factory (discovered 4 exits: Upp x2 / *Ext x2) -4/Extension (discovered 3 exits: *Res x2 / *Cet) -4/Cetus (discovered 2 exits: *Res / *Arc) -4/Archives (discovered 3 exits: *Res / *Hub x2) -4/Hub_04(d) (discovered 2 exits: *Res x2) -3/Research (discovered 6 exits: Res x3 / Arm / *Qua x2) -3/Quarantine (discovered 3 exits: *Res / [*Sec] / *Frg) -3/Protoforge (discovered 1 exit: Res) History --------- Turn | Location | Event 28 | -11/Scrapyard | Discovered new exit (range 16) 109 | -11/Scrapyard | Entered Materials 207 | -10/Materials | Discovered new exit (range 9) 230 | -10/Materials | Entered Mines 255 | -10/Mines | Assembled infested the area 278 | -10/Mines | Met a Derelict bent on vengeance 300 | -10/Mines | Build established: Mutant 466 | -10/Mines | Deemed a non-threat by the Exiles lab entrance 466 | -10/Mines | Discovered new exit (range 5) 492 | -10/Mines | Found a damaged Exp. Sensor Array with a note attached 495 | -10/Mines | Found Prototype Device 602 | -10/Mines | Met a Derelict shopkeep closing up shop 634 | -10/Mines | Learned location of Zion (-6) 663 | -10/Mines | Discovered new exit (range 8) 677 | -10/Mines | Discovered new exit (range 8) 808 | -10/Mines | Entered Materials 808 | -9/Materials | Evolved 2 slots: Propulsion x1, Utility x1 846 | -9/Materials | Identified Exp. Sensor Array 1021 | -9/Materials | Discovered new exit (range 16) 1044 | -9/Materials | Identified exit to Materials 1190 | -9/Materials | Discovered new exit (range 16) 1324 | -9/Materials | Discovered exit to Materials (range 16) 1573 | -9/Materials | Repaired Med. Armor Plating 1880 | -9/Materials | Identified exit to Mines 2033 | -9/Materials | Entered Mines 2109 | -9/Mines | Learned 2 Materials zone layouts 2348 | -9/Mines | Learned location of Storage (-8) 2474 | -9/Mines | Discovered exit to Materials (range 10) 2522 | -9/Mines | Discovered exit to Materials (range 5) 2583 | -9/Mines | Entered Materials 2583 | -8/Materials | Evolved 2 slots: Utility x1, Weapon x1 2583 | -8/Materials | Discovered new exit (range 14) 2756 | -8/Materials | Identified exit to Storage 2758 | -8/Materials | Entered Storage 2890 | -8/Storage | Identified exit to Recycling 3033 | -8/Storage | Used back door to open Recycling access 3039 | -8/Storage | Entered Recycling 3084 | -8/Recycling | Build established: Scavenger-Mutant 3584 | -8/Recycling | Build established: Commander-Gunner 3648 | -8/Recycling | Discovered new exit (range 16) 4033 | -8/Recycling | Scanned before Scraplab entrance 4055 | -8/Recycling | Entered Scraplab 4068 | -8/Recycling | Discovered new exit (range 2) 4068 | -8/Recycling | Identified exit to Scraptown 4080 | -8/Recycling | Entered Scraptown 4080 | -8/Scraptown | Accompanied by 6 allies 4080 | -8/Scraptown | System corruption cleaned by C-Scrubber 4306 | -8/Scraptown | Visited Symbiants 4348 | -8/Scraptown | Visited SPCMW 4362 | -8/Scraptown | Visited The Evicted 4383 | -8/Scraptown | Visited Awakened 4430 | -8/Scraptown | Visited TADAMA 4465 | -8/Scraptown | Heard Great Nut preacher, LISTEN AND RECITE! 4562 | -8/Scraptown | Visited Fellowship of the Rings 4585 | -8/Scraptown | Visited UFD Registry 4585 | -8/Scraptown | Registered with UFD as "Hammerdome" 4658 | -8/Scraptown | Discovered new exit (range 13) 5158 | -8/Scraptown | Visited Abandonware Association 5174 | -8/Scraptown | Learned abandonware demo "SHUTEYE.EXE" 5213 | -8/Scraptown | Visited Science Testing Area 5246 | -8/Scraptown | Visited Junk Repository 5301 | -8/Scraptown | Visited Observation Area 5315 | -8/Scraptown | Visited Curators Association 5373 | -8/Scraptown | Visited Analyses Database 5443 | -8/Scraptown | Visited Junk Cannon Lab 5465 | -8/Scraptown | Visited Chapter 10 5504 | -8/Scraptown | Found Prototype Special Weapon 5504 | -8/Scraptown | Identified Junk Cannon 5769 | -8/Scraptown | Discovered new exit (range 5) 5774 | -8/Scraptown | Identified exit to Factory 5903 | -8/Scraptown | Met Optimus 5903 | -8/Scraptown | Accepted into 0bPrime 5988 | -8/Scraptown | Entered Factory 5988 | -6/Factory | Accompanied by 6 allies 5988 | -6/Factory | Evolved 4 slots: Propulsion x1, Utility x3 6042 | -6/Factory | Loaded intel: 8 recycling unit locations 6204 | -6/Factory | Discovered new exit (range 16) 6236 | -6/Factory | Identified exit to Lower Caves 6332 | -6/Factory | Identified exit to Garrison 6332 | -6/Factory | Entered Garrison 6332 | -6/Garrison | Discovered recently destroyed garrison 6332 | -6/Garrison | Accompanied by 4 allies 6392 | -6/Garrison | Discovered new exit (range 79) 6392 | -6/Garrison | Discovered new exit (range 87) 6392 | -6/Garrison | Discovered new exit (range 60) 6422 | -6/Garrison | Garrison Relay disabled 6451 | -6/Garrison | Garrison Relay disabled 6484 | -6/Garrison | Build established: Hacker-Skirmisher 6532 | -6/Garrison | Found embedded Infiltrators 6883 | -6/Garrison | Build established: Commander-Mutant 6944 | -6/Garrison | Garrison Relay disabled 6976 | -6/Garrison | Identified exit to Factory 7076 | -6/Garrison | Installed Relay Interface Framework 7144 | -6/Garrison | Garrison Relay disabled 7306 | -6/Garrison | Entered Factory 7306 | -6/Factory | Accompanied by 9 allies 7321 | -6/Factory | Loaded intel: 8 recycling unit locations 7321 | -6/Factory | Learned location of Protoforge (-3) 7399 | -6/Factory | Discovered new exit (range 10) 7413 | -6/Factory | Identified exit to Factory 7969 | -6/Factory | Build established: Bothacker-Mutant 7970 | -6/Factory | P-60 Hacker assimilated allied Soldier 5a 8006 | -6/Factory | First assault squad dispatched 8166 | -6/Factory | Identified exit to Garrison 8211 | -6/Factory | Entered Garrison 8211 | -6/Garrison | Accompanied by 6 allies 8241 | -6/Garrison | Expanded RIF knowledge: Signal Jamming 8260 | -6/Garrison | Phase Generator disabled 8325 | -6/Garrison | Triggered checkpoint 8386 | -6/Garrison | Garrison Relay disabled 8398 | -6/Garrison | Lost 5 allies 8447 | -6/Garrison | Triggered checkpoint 8455 | -6/Garrison | Discovered new exit (range 3) 8715 | -6/Garrison | Triggered checkpoint 8782 | -6/Garrison | Lost 7 parts (3n1u3w) 8852 | -6/Garrison | Destroyed 11 combat bots 8854 | -6/Garrison | Lost 7 parts (1p2n3u1w) 9017 | -6/Garrison | Triggered checkpoint 9056 | -6/Garrison | Garrison Relay disabled 9086 | -6/Garrison | Discovered exit to Factory (range 8) 9088 | -6/Garrison | Build established: Scavenger-Gunner 9093 | -6/Garrison | Spotted B-75 Beast 9305 | -6/Garrison | Discovered exit to Factory (range 14) 9497 | -6/Garrison | Entered Factory 9497 | -5/Factory | Evolved 2 slots: Propulsion x1, Utility x1 9770 | -5/Factory | Identified exit to Upper Caves 10660 | -5/Factory | Lost 3 parts (2n1w) 10692 | -5/Factory | Loaded intel: 8 recycling unit locations 11070 | -5/Factory | Build established: Bothacker-Skirmisher 11376 | -5/Factory | Entered Upper Caves 11387 | -5/Upper Caves | Learned Factory stockpile data 11547 | -5/Upper Caves | A Derelict revealed a hidden shortcut to "reach the base" 11551 | -5/Upper Caves | Identified exit to Warlord 11562 | -5/Upper Caves | Entered Warlord 11589 | -5/Warlord | System corruption cleaned by Quarantine Array 11592 | -5/Warlord | RIF detected upon attempting to enter Warlord's base 11592 | -5/Warlord | Attacked by Warlord forces 11599 | -5/Warlord | Spotted EU-37Z(B) 11599 | -5/Warlord | Spotted 7E-OLD(B) 11623 | -5/Warlord | Discovered new exit (range 12) 11629 | -5/Warlord | Identified exit to Proximity Caves 11629 | -5/Warlord | Entered Proximity Caves 11638 | -4/Proximity Caves | Acquired the password to a Derelict Tinkerer's latest research 11645 | -4/Proximity Caves | Found Prototype Special Weapon 11811 | -4/Proximity Caves | Discovered new exit (range 14) 11822 | -4/Proximity Caves | Identified exit to Factory 11826 | -4/Proximity Caves | Entered Factory 11826 | -4/Factory | Evolved 2 slots: Propulsion x1, Utility x1 11947 | -4/Factory | Loaded intel: 8 recycling unit locations 11999 | -4/Factory | Identified exit to Upper Caves 11999 | -4/Factory | Identified exit to Extension 12226 | -4/Factory | Entered Extension 12226 | -4/Extension | Accompanied by 1 ally 12274 | -4/Extension | Loaded intel: 2 recycling unit locations 12395 | -4/Extension | Rescued A7 12480 | -4/Extension | Energy Cycler disabled 12480 | -4/Extension | Rescued a captive Derelict 12482 | -4/Extension | Rescued a captive Derelict 12483 | -4/Extension | Rescued a captive Derelict 12484 | -4/Extension | Rescued a captive Derelict 12484 | -4/Extension | Rescued a captive Derelict 12504 | -4/Extension | Rescued a captive Derelict 12505 | -4/Extension | Lost 3 parts (1n1u1w) 12558 | -4/Extension | Spotted B-86 Titan 12561 | -4/Extension | Spotted B-86 Titan 12565 | -4/Extension | Discovered new exit (range 15) 12599 | -4/Extension | Lost 4 parts (1p1u2w) 12674 | -4/Extension | Lost 3 parts (1n2u) 12871 | -4/Extension | Discovered new exit (range 10) 12872 | -4/Extension | Discovered new exit (range 6) 12907 | -4/Extension | Identified exit to Research 12917 | -4/Extension | Disrupted transfer network 12924 | -4/Extension | Identified exit to Cetus 12924 | -4/Extension | Entered Cetus 12924 | -4/Cetus | Accompanied by 2 allies (A7) 12926 | -4/Cetus | Lost 3 parts (1n1u1w) 12929 | -4/Cetus | Acquired a Cetus Manufacturing Module code from A7 12932 | -4/Cetus | Spotted Cetus Guard 12932 | -4/Cetus | Spotted Cetus Guard 12933 | -4/Cetus | Identified Molecular Deconstructor 12935 | -4/Cetus | Spotted Cetus Guard 12935 | -4/Cetus | Spotted Cetus Guard 12941 | -4/Cetus | Allies destroyed Cetus Guard 12949 | -4/Cetus | Allies destroyed Cetus Guard 12959 | -4/Cetus | Allies destroyed Cetus Guard 12963 | -4/Cetus | Destroyed Cetus Guard 12992 | -4/Cetus | Lost 4 parts (1n1u2w) 13019 | -4/Cetus | System corruption reached 10% 13062 | -4/Cetus | Started Cetus Manufacturing Module 13087 | -4/Cetus | Manufactured an Enhanced Grunt 13112 | -4/Cetus | Manufactured an Enhanced Grunt 13137 | -4/Cetus | Manufactured an Enhanced Grunt 13162 | -4/Cetus | Manufactured an Enhanced Grunt 13187 | -4/Cetus | Manufactured an Enhanced Grunt 13238 | -4/Cetus | Discovered new exit (range 15) 13265 | -4/Cetus | Spotted Cetus Guard 13265 | -4/Cetus | Spotted Cetus Guard 13267 | -4/Cetus | Spotted Cetus Guard 13267 | -4/Cetus | Spotted Cetus Guard 13279 | -4/Cetus | Destroyed Cetus Guard 13286 | -4/Cetus | Allies destroyed Cetus Guard 13289 | -4/Cetus | Allies destroyed Cetus Guard 13291 | -4/Cetus | Destroyed Cetus Guard 13296 | -4/Cetus | Discovered exit to Research (range 15) 13304 | -4/Cetus | Met Revision 17 13342 | -4/Cetus | Build established: Scavenger-Tank 13375 | -4/Cetus | Identified exit to Archives 13381 | -4/Cetus | Entered Archives 13381 | -4/Archives | Accompanied by 6 allies 13438 | -4/Archives | Discovered new exit (range 15) 13472 | -4/Archives | Discovered exit to Research (range 15) 13510 | -4/Archives | Identified exit to Hub_04(d) 13547 | -4/Archives | Unable to access archive contents 13651 | -4/Archives | Discovered exit to Hub_04(d) (range 15) 14034 | -4/Archives | Entered Hub_04(d) 14034 | -4/Hub_04(d) | Accompanied by 8 allies 14034 | -4/Hub_04(d) | Discovered exit to Research (range 11) 14106 | -4/Hub_04(d) | Discovered exit to Research (range 14) 14268 | -4/Hub_04(d) | Network Hub disabled 14268 | -4/Hub_04(d) | Network Hub disabled 14280 | -4/Hub_04(d) | Entered Research 14280 | -3/Research | Accompanied by 4 allies 14280 | -3/Research | Evolved 2 slots: Utility x1, Weapon x1 14419 | -3/Research | Loaded intel: 5 recycling unit locations 14478 | -3/Research | Spotted B-86 Titan 14480 | -3/Research | Revision forces began assault on 0b10 14512 | -3/Research | Met up with Revision 17++ 14594 | -3/Research | Allies destroyed B-86 Titan 14608 | -3/Research | Identified exit to Armory 14608 | -3/Research | Identified exit to Quarantine 14701 | -3/Research | Identified exit to Research 14968 | -3/Research | Lost 3 parts (2u1w) 14980 | -3/Research | Research terminal network offline 15200 | -3/Research | Lost 4 parts (1p1n2u) 15240 | -3/Research | Spotted B-90 Cyclops 15331 | -3/Research | Lost 8 parts (2n6u) 15555 | -3/Research | Found Prototype Processor 15751 | -3/Research | Spotted Striker 15821 | -3/Research | Spotted Striker 15821 | -3/Research | Spotted Executioner 15823 | -3/Research | Destroyed Executioner 15830 | -3/Research | Destroyed Striker 15864 | -3/Research | Spotted Striker 15879 | -3/Research | Destroyed 8 combat bots 15881 | -3/Research | Destroyed Striker 15883 | -3/Research | Spotted Executioner 15889 | -3/Research | Destroyed Executioner 15931 | -3/Research | Lost 9 parts (1p1n2u5w) 15945 | -3/Research | Spotted Striker 15967 | -3/Research | Core integrity fell below 50% 15968 | -3/Research | Destroyed Striker 15997 | -3/Research | Lost 3 parts (1p1n1u) 16007 | -3/Research | Spotted Striker 16014 | -3/Research | Spotted Striker 16034 | -3/Research | Destroyed Striker 16043 | -3/Research | Spotted Striker 16078 | -3/Research | Entered Quarantine 16079 | -3/Quarantine | Identified Spectral Analyzer 16081 | -3/Quarantine | Spotted Alpha 7 16088 | -3/Quarantine | Lost 14 parts (1p4n4u5w) 16103 | -3/Quarantine | Found Alien Artifact 16125 | -3/Quarantine | Found Alien Energy Cannon 16147 | -3/Quarantine | Found Alien Artifact 16157 | -3/Quarantine | Identified Subatomic Replicator 16157 | -3/Quarantine | Identified Core Reset Matrix 16189 | -3/Quarantine | Identified Core Cannon 16194 | -3/Quarantine | Discovered exit to Research (range 12) 16412 | -3/Quarantine | Spotted Fortress 16427 | -3/Quarantine | Discovered new exit (range 6) 16427 | -3/Quarantine | Discovered new exit (range 7) 16428 | -3/Quarantine | Identified exit to Protoforge 16428 | -3/Quarantine | Entered Protoforge 16437 | -3/Protoforge | Spotted Hotshot 16549 | -3/Protoforge | Superfortress began startup sequence 16552 | -3/Protoforge | Core integrity fell below 20% 16567 | -3/Protoforge | Spotted AP7-3 16567 | -3/Protoforge | Spotted AP7-3 16570 | -3/Protoforge | Spotted Overlord 16575 | -3/Protoforge | Spotted SKR-2 16575 | -3/Protoforge | Spotted SKR-2 16575 | -3/Protoforge | Spotted SKR-2 16582 | -3/Protoforge | UFD initiated attack on Protoforge 16582 | -3/Protoforge | Loaded intel: 3 recycling unit locations 16598 | -3/Protoforge | Spotted EXE-6 16598 | -3/Protoforge | Spotted EXE-6 16609 | -3/Protoforge | Scraphulk reinforcements arrived 16617 | -3/Protoforge | Learned Research stockpile data 16621 | -3/Protoforge | Optimus greeted in Protoforge 16637 | -3/Protoforge | Lost 3 parts (1n1u1w) 16644 | -3/Protoforge | Found Prototype Ballistic Gun 16644 | -3/Protoforge | Identified Cep. XC Strikerail 16647 | -3/Protoforge | Found Cep. XC Strikerail 16649 | -3/Protoforge | Found Cep. XC Strikerail 16652 | -3/Protoforge | Found Prototype Device 16652 | -3/Protoforge | Identified Exp. Kinecellerator 16654 | -3/Protoforge | Found Prototype Processor 16654 | -3/Protoforge | Identified Exp. Armor Integrity Analyzer 16660 | -3/Protoforge | Lost 3 allies 16672 | -3/Protoforge | Learned Research scanalyzer intel 16672 | -3/Protoforge | Found Prototype Processor 16672 | -3/Protoforge | Identified Exp. Target Analyzer 16689 | -3/Protoforge | Spotted EXE-6 16689 | -3/Protoforge | Spotted EXE-6 16700 | -3/Protoforge | Forge Plexus network access discovered 16719 | -3/Protoforge | Learned Access stockpile data 16756 | -3/Protoforge | Learned Quarantine trap positions 16771 | -3/Protoforge | UFD reported confirmed Drillbomb installation 16783 | -3/Protoforge | Learned Quarantine terminal intel 16806 | -3/Protoforge | Met 7R-MNS 16818 | -3/Protoforge | Spotted Executioner 16818 | -3/Protoforge | Spotted Striker 16854 | -3/Protoforge | Destroyed Striker 16867 | -3/Protoforge | Spotted Striker 16869 | -3/Protoforge | Spotted Striker 16894 | -3/Protoforge | System corruption reached 10% 16895 | -3/Protoforge | Found UFD Drillbomb 16905 | -3/Protoforge | Lost 11 allies 16912 | -3/Protoforge | Installed UFD Drillbomb at designated target 16912 | -3/Protoforge | UFD reported confirmed Drillbomb installation 16979 | -3/Protoforge | Found UFD Drillbomb 17059 | -3/Protoforge | Found Exp. Core Analyzer 17061 | -3/Protoforge | Found Adv. Kinecellerator 17081 | -3/Protoforge | Spotted Striker 17082 | -3/Protoforge | Spotted Executioner 17082 | -3/Protoforge | Spotted Executioner 17085 | -3/Protoforge | Spotted Striker 17088 | -3/Protoforge | Destroyed Striker 17108 | -3/Protoforge | Destroyed Executioner 17122 | -3/Protoforge | Destroyed Striker 17145 | -3/Protoforge | Lost 7 allies 17154 | -3/Protoforge | Spotted Striker 17155 | -3/Protoforge | Spotted Striker 17158 | -3/Protoforge | Used Subatomic Replicator to replicate Cep. XC Strikerail 17159 | -3/Protoforge | Destroyed 8 combat bots 17166 | -3/Protoforge | Lost 4 parts (1p2u1w) 17185 | -3/Protoforge | Spotted Striker 17187 | -3/Protoforge | Spotted Executioner 17204 | -3/Protoforge | Spotted Executioner 17207 | -3/Protoforge | Spotted Striker 17212 | -3/Protoforge | Destroyed by Executioner with Helical Railgun Last Messages --------------- 17209_ N-04 Retriever collects Lgt. Angular Momentum Engine. 17209_ Myomer Leg destroyed. 17209_ Slug penetrates Striker. 17209_ Slug penetrates Earth. 17210_ N-04 Retriever collects Gravmag System. 17210_ N-04 Retriever collects Segregator. 17210_ L-61 Swordsman sneak attacks. 17210_ 03F32-D destroyed. 17211_ Flexi-carbon Leg destroyed. 17211_ C-30 ARC bursts open, deploying its payload. 17211_ G-67 Veteran unfolds itself. 17211_ P-80 Master unfolds itself. 17211_ B-74 Champion unfolds itself. 17211_ S-43 Plague unfolds itself. 17211_ E-15 Imp unfolds itself. 17211_ Penetrated by Slug. 17212_ P-80 Master hacks 75-2FJ(j), rebooting. 17212_ Penetrated by Slug. Map ----- +----------------------------------------------------+ | ?????????????????????## ##???????????????????### | | ?????????????????????## ##???????????????????### | | ?????????????????????## ##???????????????????##? | | ?????????????????????## ##??????????????????###? | | ??????????????????? ?## ##??????????????????###? | | ??????????????????? ## ##????????????#####?##?? | | ################# #; ######################?? | | ##################;#;;; ################?#####?? | | ????????????????? ?????????? ??????#?? | | ?????????????????? ??????????? ????????? | | ?????????????????? % / ??????????? ??????#?? | | #####?#############;;;=E #############!########?? | | ###??????######?? K !% ; ?#####!########?? | | ?##??????######?? p%s;% ; ?##?## ########## | | ?##???????????# ??"" b [ ""T"??##?##=!!######## | | ?##??????###### ??""gipg*=!""" ??##?##!!*#??????# | | ?##??????###### ?? [![%=!!! ???##?## ! # " " # | | ###??????########;###;;se%!*[*######?## =[ " " # | | ##################!#;;*%=![;[!######?## # " " # | | " =!!*[=!b!=!########## # # | | !%[[[[%=*!n%!######### ######## | | =&[![[*!==E*lj! [*!% ! #"#"##" | | ==%%*%=%%%=%########! " | | #### ###########!##;!!|*!!######### % "% | | ??##????########### ###=%%K=!##?????## | | ??##????##???????## ###!=@*!=##?????## ###"##" | | ??##????########### ##;%%=*/=##?????### ## "# | | ??##????###########"#;#= % %!##?????### ## ## | | ??##????#????????? ?#|!!**[##??????## ## ## | | ??##????#???????!? ?#= = ;#??????## ##" #" | | ??##????#???????*?= ?#= ;#??????## ##"" #" | | ??##????#???????[?[! ?# ##??????## ##"T "= | | ??##????#???????!= ; ""##??????## ##"" "* | | ??##???????????=?[ ; "" ########## ## "[="% | | ??##??!?#####!##=#"""## #####"#### ## = "% | | ####??!!###"%#"###"%*!=*;;;###=[" """ ##"[*!"" | | #### =[ % !%=! *%%% != "% %%% %% | | ??#" =% % % %! =%%! % %%!%[" %% % % ! | | #### %! %"%% %!= [= |%%![%! % % *![= = | | ####*=[%="" """"""##";;;#%;#!=# = """"#"!% !!" | | ???=%=%*=!!##### ##### #### ########### # !!!*[! | | ????[ !!=!!######### #### ############ !! [=# | | ????? ?#################################"!=[![#"" | | ?????????????????????? [[!*= !|=%! | | ?####?################ = ! [ !=*= # | | ?#??????????????????##? =![= # # | | ?#??????????????????#####+#### ########## #### | | ?#??????????????????###??????# ??########## ##?? | | ?#??????????????????###??????#???##??????## ##?? | | ?#??????????????????###??????######??????## !#?# | +----------------------------------------------------+ Best States ------------- Heat Dissipation 103 Energy Generation 29 Energy Capacity 525 Matter Stores 524 Matter Capacity 550 Sight Range 23 Robot Scan Range 20 Terrain Scan Density 110 Corruption Containment 12 Armor Coverage 1350 Power Shielding 90 Propulsion Shielding 66 Phase Shifting 10 Evasion (%) 78 Targeting Accuracy 6 Melee Accuracy 5 Launcher Accuracy 40 Target Analysis 10 Core Analysis 11 Armor Integrity Analysis 50 Recoil Reduction 6 Kinecelleration 50 Offensive Hacking 26 Relay Coupler Types 3 Relay Coupler Value 65 Item Schematics ----------------- Imp. Trap Scanner | -8/Recycling | Hacked Imp. Melee Analysis Suite | -8/Recycling | Hacked Robot Schematics ------------------ None Fabricated ------------ Nothing Repaired ---------- Med. Armor Plating | 1% | -9/Materials Alien Tech Used ----------------- Core Cannon Subatomic Replicator Achievements -------------- No Signal Challenges ------------ None Game ------ Seed MicrowarpFluxLauncher Manual? 0 Play Time 08:16:04 Cumulative 268.7 hours Start 2025.07.23 @ 12:39:55 End 2025.07.25 @ 13:03:12 Sessions 19 Manual Loads 0 Difficulty Rogue Special Mode None Game No. 236 Rogue 236 Adventurer 0 Explorer 0 Win Type - Total 1 Types 1/0/0/0/0/0/0/0/0/0 Lore% 77 Gallery% 64 Achievement% 55 Wizard Run 0 Options --------- Layout 1 ASCII 0 Keyboard 0 Movement Mouse Keybinds 0 Fullscreen 1 Font 24/Smallcaps Map View 50x35 Zoom Use 0% Tactical HUD 1 Map Filters NONE Filters NONE Steam 1 RUN: 1bc93a91-500d-4b19-80cf-65a24430d53d